Cogmind - Beta 16.1 @@@ ROGUE MODE // 2026.02.27 @ 19:47:13 Player: Florist Result: Self-destructed Performance ------------- Evolutions (5) 2500 Regions Visited (6) 1200 Robots Destroyed (29) 145 Value Destroyed (778) 778 Prototype IDs (20) 400 Alien Tech Used (0) 0 Bonus (230) 230 TOTAL SCORE: 5253 Bonus ------- Registered with UFD 300 Friendly Fire -70 Cogmind --------- Core Integrity 537/1000 Matter 300/300 Energy 88/100 System Corruption 0% Temperature Cool (0) Movement Flying (205) Ox2 Location -5/Upper Caves Parts ------- > --- POWER (1) -------- (None) > --- PROPULSION (5) --- Field Propulsion Drive > --- UTILITY (9) ------ Medium Storage Unit Advanced Terrain Scan Processor Surveybot 17 Chip Melee Analysis Suite Microactuators Light Armor Plating Advanced Hacking Suite > --- WEAPON (2) ------- Companion Sword > --- INVENTORY (10) --- Wheel Improved Sensor Array Hacking Suite Hacking Suite Hacking Suite Mapping Drone Bay (3/3) Multitool Peak State ------------ > --- POWER ------------ Light Nuclear Core > --- PROPULSION ------- Cesium-ion Thruster Xenon Bombardment Thruster Nuclear Pulse Thruster Field Propulsion Drive > --- UTILITY ---------- Medium Storage Unit Advanced Terrain Scanner Advanced Terrain Scan Processor Surveybot 17 Chip Layered Light Armor Plating Advanced Hacking Suite Improved System Shield Mapping Drone Bay Mapping Drone Bay > --- WEAPON ----------- Companion Sword > --- INVENTORY -------- Wheel Improved Sensor Array Microactuators Microactuators Light Armor Plating Hacking Suite Hacking Suite Hacking Suite Multitool [Rating: 73] Favorites ----------- Power Ion Engine Engine Ion Engine Power Core Light Nuclear Core Propulsion Light Treads Treads Light Treads Leg Cargo Legs Wheel Subdweller Monowheel Flight Unit Cesium-ion Thruster Utility Humpback Device Mapping Drone Bay Storage Humpback Processor Advanced Terrain Scan Processor Hackware Hacking Suite Protection Layered Light Armor Plating Weapon Medium Laser Energy Gun Medium Laser Energy Cannon Beam Cannon Ballistic Gun Assault Rifle Launcher Subdweller Shrapnel Launcher Special Weapon Multitool Slashing Weapon Companion Sword Build | -11 -10 -10 -7 -5 -5 -5 ------- Run | Yrd Mat Sub Scr Fac Upp Upp Slots Evolved 10 | . . . . 10 . . Power . | . . . . . . . Propulsion 3 | . . . . 3 . . Utility 7 | . . . . 7 . . Weapon . | . . . . . . . Parts Attached 50 | 8 1 13 4 18 4 2 Power 5 | 1 . 1 1 2 . . Engine 3 | 1 . 1 . 1 . . Core 2 | . . . 1 1 . . Reactor . | . . . . . . . Propulsion 12 | 2 . 4 . 5 . 1 Treads 3 | 2 . 1 . . . . Leg 2 | . . 2 . . . . Wheel 3 | . . 1 . 1 . 1 Hover . | . . . . . . . Flight 4 | . . . . 4 . . Utility 23 | 2 1 3 2 10 4 1 Device 8 | 1 . . 1 3 2 1 Storage 5 | 1 1 1 1 1 . . Processor 3 | . . . . 2 1 . Hackware 4 | . . 2 . 2 . . Protection 3 | . . . . 2 1 . Artifact . | . . . . . . . Weapon 10 | 3 . 5 1 1 . . Energy Gun 4 | 2 . 2 . . . . Energy Cannon 2 | . . 2 . . . . Ballistic Gun 1 | 1 . . . . . . Ballistic Cannon . | . . . . . . . Launcher 1 | . . 1 . . . . Special Weapon 1 | . . . . 1 . . Impact Weapon . | . . . . . . . Slashing Weapon 1 | . . . 1 . . . Piercing Weapon . | . . . . . . . Special Melee Weapon . | . . . . . . . Unidentified Prototypes 1 | . . . 1 . . . Parts Lost 15 | . . 4 . 1 2 8 Power 3 | . . 1 . 1 . 1 Propulsion 5 | . . 1 . . . 4 Utility 5 | . . . . . 2 3 Weapon 2 | . . 2 . . . . Highest Loss Streak 6 | . . 2 . 1 1 6 To Critical Strikes 1 | . . . . . . 1 Average Backups 22 | 3 10 24 22 10 9 9 Power 2 | . 1 2 2 . . . Propulsion 4 | 1 2 4 5 1 1 1 Utility 8 | . 4 8 8 8 7 7 Weapon 6 | . 2 8 5 . . . Tool/Special . | . . . . . . . Unused Backups 21 | . . . 17 . . 4 Power 2 | . . . 2 . . . Propulsion 4 | . . . 3 . . 1 Utility 9 | . . . 6 . . 3 Weapon 6 | . . . 6 . . . Tool/Special . | . . . . . . . Average Slot Usage (%) 77 | . 99 77 74 62 76 71 Engine 8 | . 13 7 10 . . . Treads 12 | . 27 20 . . . . Leg 5 | . . 2 11 1 . . Device 1 | . 14 . 2 5 4 1 Storage 12 | . 14 13 10 5 5 5 Hackware 11 | . . 5 22 9 11 5 Energy Gun 11 | . 28 14 6 . . . Energy Cannon 9 | . . 12 6 . . . Slashing Weapon 1 | . . . 4 5 5 5 Peak Build Rating 73 | 7 8 33 44 68 73 60 Average Rating 24 | 5 7 16 34 52 61 52 On Entrance 30 | . 7 8 33 44 62 60 Avg Prop Armor Cover (%) 10 | . . 12 . 9 . 9 Naked Turns . | . . . . . . . Heaviest Build 215 | 12 27 215 210 33 30 24 Greatest Support 55 | 40 40 55 55 55 26 26 Greatest Overweight (x) 10 | . . 10 3 2 1 1 Average Overweight (x) 2 | . . 4 1 . . . Largest Inventory Capacity 35 | 8 15 35 35 15 10 10 Average Capacity 29 | 7 14 34 26 11 10 10 Most Carried 32 | 5 15 32 32 15 10 10 Average Carried 22 | 3 10 24 23 9 9 9 Final Capacity 35 | 8 15 35 15 10 10 10 Final Carried 32 | 5 15 32 15 10 10 7 Class Distribution -------------------- 75% | Hauler-Mutant 16% | Hacker-Mutant 6% | Mutant Dominant Class ---------------- Mutant | -10/Materials Hauler-Mutant | -10/Subcaves Hauler-Mutant | -7/Scraptown Hacker-Mutant | -5/Factory Hacker-Sprinter | -5/Upper Caves Mutant | -5/Upper Caves Resources | -11 -10 -10 -7 -5 -5 -5 ----------- Run | Yrd Mat Sub Scr Fac Upp Upp Matter Collected 950 | 185 125 320 20 215 75 10 Remotely . | . . . . . . . Salvage Created 942 | 48 198 542 . 137 . 17 Parts 58 | 7 10 29 . 11 . 1 Haulers Intercepted 1 | . 1 . . . . . Recyclers Shooed . | . . . . . . . Parts Field Recycled . | . . . . . . . Retrieved Matter . | . . . . . . . Parts Self-Destructed 6 | . . 6 . . . . Prevented 3 | . . . . . . 3 Parts Restored . | . . . . . . . Kills | -11 -10 -10 -7 -5 -5 -5 ------- Run | Yrd Mat Sub Scr Fac Upp Upp Combat Hostiles Destroyed 21 | . 3 15 . 3 . . Melee 3 | . . . . 3 . . Guns 8 | . 2 6 . . . . Cannons 6 | . . 6 . . . . AOE 3 | . . 3 . . . . Classes Destroyed 13 | 1 4 5 . 2 . 1 Worker 4 | . 1 . . 3 . . Tunneler 2 | 2 . . . . . . Hauler 1 | . 1 . . . . . Minesweeper 1 | . . . . . . 1 Operator 1 | . 1 . . . . . Swarmer 4 | . . 3 . 1 . . Grunt 3 | . 3 . . . . . Sentry 1 | . . 1 . . . . Hunter 1 | . . . . 1 . . Artisan 2 | . . 2 . . . . Cobbler 1 | . . 1 . . . . Subdweller 11 | . . 11 . . . . Assembled 1 | . . . . 1 . . Best Kill Streak 3 | 1 3 3 . 2 . 1 Combat Bots Only 3 | . 2 3 . 1 . . Max Kills in Single Turn 1 | 1 1 1 . 1 . 1 Gunslinging . | . . . . . . . Exploded 1 | . . 1 . . . . Melee 1 | . . . . 1 . . Uniques/NPCs Destroyed . | . . . . . . . Combat | -11 -10 -10 -7 -5 -5 -5 -------- Run | Yrd Mat Sub Scr Fac Upp Upp Hostile Shots Fired 211 | . 14 98 . 27 19 53 Missed 74 | . 6 30 . 11 13 14 Hits 137 | . 8 68 . 16 6 39 Projectile 137 | . 8 68 . 16 6 39 AOE 3 | . . . . 3 . . Critical Strikes 2 | . . 1 . . . 1 Damage Taken 2568 | . 88 1102 . 592 117 669 Core 619 | . . 156 . 272 19 172 Absorbed by Shields . | . . . . . . . Core Remaining (%) 68 | 100 . . 37 . . . Volleys Fired 100 | 6 21 73 . . . . Largest 2 | 2 2 2 . . . . Hottest 140 | 90 90 140 . . . . Shots Fired 180 | 12 42 126 . . . . Gun 120 | 12 42 66 . . . . Cannon 52 | . . 52 . . . . Launcher 8 | . . 8 . . . . Special . | . . . . . . . Kinetic 8 | . . 8 . . . . Thermal 172 | 12 42 118 . . . . Explosive . | . . . . . . . Electromagnetic . | . . . . . . . Robot Hit Streak 25 | 3 8 25 . . . . Robot Miss Streak 3 | 2 2 3 . . . . Penetration Max . | . . . . . . . Secondary Targets . | . . . . . . . Shots Hit Robots 128 | 6 29 79 . 9 . 5 Core Hits 48 | 3 10 28 . 6 . 1 Critical Kills . | . . . . . . . Critical Parts Destroyed . | . . . . . . . Critical Strikes 4 | . 2 . . . . 2 Burn 2 | . 2 . . . . . Melee Attacks 27 | . . . . 17 4 6 Impact . | . . . . . . . Slashing 27 | . . . . 17 4 6 Piercing . | . . . . . . . Sneak Attacks 5 | . . . . 4 . 1 Combat Hostiles . | . . . . . . . Follow-up Attacks . | . . . . . . . Damage Inflicted 3039 | 70 340 1806 . 581 . 242 Guns 1126 | 70 340 716 . . . . Cannons 496 | . . 496 . . . . Explosions 594 | . . 594 . . . . Melee 823 | . . . . 581 . 242 Ramming . | . . . . . . . Kinetic 594 | . . 594 . . . . Thermal 1622 | 70 340 1212 . . . . Explosive . | . . . . . . . Electromagnetic . | . . . . . . . Impact . | . . . . . . . Slashing 823 | . . . . 581 . 242 Piercing . | . . . . . . . Highest Corruption . | . . . . . . . Average Corruption . | . . . . . . . Corruption Purged . | . . . . . . . Corruption Blocked . | . . . . . . . Overload Shots . | . . . . . . . Overflow Damage 122 | . . 9 . 59 . 54 Projectiles . | . . . . . . . Explosions 9 | . . 9 . . . . Melee 113 | . . . . 59 . 54 Knockbacks . | . . . . . . . Impact . | . . . . . . . Kinetic . | . . . . . . . Secondary . | . . . . . . . Self-Inflicted Damage 93 | . . 93 . . . . Shots 3 | . . 3 . . . . Rammed . | . . . . . . . Targets Rammed . | . . . . . . . Kicked . | . . . . . . . Crushed . | . . . . . . . Highest Temperature 180 | 90 180 60 . 7 . . Average Temperature 52 | 37 76 14 . 5 . . Received Heat Transfer 283 | . 48 96 . 121 18 . Siege Activations . | . . . . . . . Martial Activations . | . . . . . . . Shielding Activations . | . . . . . . . Robots Disrupted . | . . . . . . . Combat Hostiles . | . . . . . . . Robots Corrupted . | . . . . . . . Combat Hostiles . | . . . . . . . Parts Fried . | . . . . . . . Impact Corruptions . | . . . . . . . Robots Melted 1 | . 1 . . . . . Combat Hostiles 1 | . 1 . . . . . Parts Melted 9 | 1 4 4 . . . . Heat Transferred 3640 | 186 1077 2377 . . . . Parts Sabotaged . | . . . . . . . Parts Stolen . | . . . . . . . Parts Stripped . | . . . . . . . Power Chain Reactions . | . . . . . . . Alert | -11 -10 -10 -7 -5 -5 -5 ------- Run | Yrd Mat Sub Scr Fac Upp Upp Maximum Alert Level . | . . . . . . . Low Security (%) 100 | 100 100 . . 100 . . Level 1 . | . . . . . . . Level 2 . | . . . . . . . Level 3 . | . . . . . . . Level 4 . | . . . . . . . Level 5 . | . . . . . . . High Security . | . . . . . . . Max Security . | . . . . . . . Peak Influence 95 | 5 95 . . 35 . . Initial . | . . . . . . . Average 14 | . 19 . . 9 . . Influence Increases 444 | 10 143 80 . 116 90 5 Destroy 0b10 Robot/C 180 | . 60 80 . 40 . . Destroy 0b10 Robot/NC 45 | 10 15 . . 15 . 5 Destroy Leader 32 | . 22 . . 10 . . Successful Hack 18 | . 16 . . 2 . . Select Force Hacks 30 | . 30 . . . . . Disable Machine 15 | . . . . 15 . . Destroy Structure 4 | . . . . 4 . . Lose Combat Pursuer 120 | . . . . 30 90 . Influence Decreases 444 | 10 143 80 . 116 80 15 Entered New Map 2 | . . . . . . 2 Time Decay 384 | 10 143 60 . 106 60 5 Lost Part 58 | . . 20 . 10 20 8 Squads Dispatched 3 | . 2 . . 1 . . Investigation 1 | . 1 . . . . . Extermination . | . . . . . . . Reinforcement 2 | . 1 . . 1 . . Assault . | . . . . . . . Garrison . | . . . . . . . Intercept . | . . . . . . . Searches Triggered . | . . . . . . . Construction Impeded . | . . . . . . . Haulers Reinforced . | . . . . . . . Active Scanning Responses . | . . . . . . . Cargo Convoy Interrupts . | . . . . . . . Stealth | -11 -10 -10 -7 -5 -5 -5 --------- Run | Yrd Mat Sub Scr Fac Upp Upp Distress Signals 5 | . 2 . . 3 . . Communications Jammed . | . . . . . . . Distress Signals . | . . . . . . . Times Spotted 61 | . 4 16 . 26 12 3 Peak Tracking Total 8 | . 2 4 . 8 5 3 Tactical Retreats 5 | . . . . 2 3 . Traps | -11 -10 -10 -7 -5 -5 -5 ------- Run | Yrd Mat Sub Scr Fac Upp Upp Traps Triggered 3 | . 2 . . 1 . . Indirectly . | . . . . . . . Trap Hack Attempts . | . . . . . . . Triggered . | . . . . . . . Disarmed . | . . . . . . . Reprogrammed . | . . . . . . . Reused 2 | . . . . . . 2 Traps Extracted . | . . . . . . . Installed 2 | . . . . . . 2 Triggered 2 | . . . . . . 2 Most Traps Carried 1 | . . 1 1 . . . Machines | -11 -10 -10 -7 -5 -5 -5 ---------- Run | Yrd Mat Sub Scr Fac Upp Upp Machines Disabled 3 | . . 1 . 2 . . Max in Single Turn 1 | . . 1 . 1 . . Machines Repaired 2 | . . . . 2 . . Machines Dismantled . | . . . . . . . Machines Sabotaged . | . . . . . . . Overloaded Fab Kills . | . . . . . . . Hacking | -11 -10 -10 -7 -5 -5 -5 --------- Run | Yrd Mat Sub Scr Fac Upp Upp Machines Accessed 13 | . 5 2 3 2 1 . Terminals 5 | . 4 . . 1 . . Fabricators . | . . . . . . . Repair Stations . | . . . . . . . Recycling Units 1 | . 1 . . . . . Scanalyzers 1 | . . . . 1 . . Garrison Access . | . . . . . . . Total Hacks 31 | . 13 6 7 4 1 . Successful 27 | . 10 6 7 3 1 . Failed 3 | . 3 . . . . . Catastrophic . | . . . . . . . Database Lockouts 1 | . . . . 1 . . Manual 13 | . 12 . . 1 . . Terminals 12 | . 11 . . 1 . . Fabricators . | . . . . . . . Repair Stations . | . . . . . . . Recycling Units 2 | . 2 . . . . . Scanalyzers 3 | . . . . 3 . . Garrison Access . | . . . . . . . Terminal Hacks 14 | . . 6 7 . 1 . Record 6 | . . 5 1 . . . Robot Analysis 4 | . . . 4 . . . Open Door 2 | . . . 1 . 1 . Proto ID Catalog 2 | . . 1 1 . . . Fabricator Hacks . | . . . . . . . Repair Station Hacks . | . . . . . . . Recycling Unit Hacks 1 | . 1 . . . . . Retrieve Components 1 | . 1 . . . . . Scanalyzer 2 | . . . . 2 . . Retrieve Study 2 | . . . . 2 . . Garrison Access Hacks . | . . . . . . . Unauthorized Hacks 10 | . 9 . . 1 . . Terminals 9 | . 8 . . 1 . . Botnet 4 | . 4 . . . . . Skim 5 | . 4 . . 1 . . Fabricators . | . . . . . . . Repair Stations . | . . . . . . . Recycling Units 1 | . 1 . . . . . Tunnel 1 | . 1 . . . . . Scanalyzers . | . . . . . . . Garrison Access . | . . . . . . . Data Cores Recovered . | . . . . . . . Used . | . . . . . . . Hacking Detections 4 | . 4 . . . . . Full Trace Events . | . . . . . . . Feedback Events . | . . . . . . . Feedback Blocked . | . . . . . . . Robot Schematics Acquired . | . . . . . . . Robots Built . | . . . . . . . Authchips . | . . . . . . . Time . | . . . . . . . Total Robot Build Rating . | . . . . . . . Part Schematics Acquired . | . . . . . . . Parts Built . | . . . . . . . Authchips . | . . . . . . . Time . | . . . . . . . Total Part Build Rating . | . . . . . . . Part Studies Acquired 2 | . . . . 2 . . Parts Repaired . | . . . . . . . Time . | . . . . . . . Parts Recycled . | . . . . . . . Recycled Matter . | . . . . . . . Retrieved Matter . | . . . . . . . Retrieved Components 9 | . 9 . . . . . Parts Scanalyzed . | . . . . . . . Part Schematics Acquired . | . . . . . . . Parts Damaged . | . . . . . . . Bothacking | -11 -10 -10 -7 -5 -5 -5 ------------ Run | Yrd Mat Sub Scr Fac Upp Upp Used RIF Installer . | . . . . . . . Robots Hacked . | . . . . . . . Non-combat . | . . . . . . . Combat . | . . . . . . . Robot Hacks Applied . | . . . . . . . Relay Couplers Released . | . . . . . . . Fabnet Peak Effective % . | . . . . . . . Robots Rewired . | . . . . . . . Allies Hacked . | . . . . . . . Hacks Repelled . | . . . . . . . Allies | -11 -10 -10 -7 -5 -5 -5 -------- Run | Yrd Mat Sub Scr Fac Upp Upp Total Allies . | . . . . . . . Largest Group . | . . . . . . . Highest-Rated Group . | . . . . . . . Highest-Rated Ally . | . . . . . . . Initial UFD Resources 39 | . . . . 39 39 39 Total Orders 15 | . . . 12 . 3 . STAY 3 | . . . 3 . . . ROAM 2 | . . . 2 . . . FOLLOW 3 | . . . 3 . . . EXPLORE 2 | . . . 1 . 1 . RETURN 5 | . . . 3 . 2 . Ally Attacks . | . . . . . . . Total Damage . | . . . . . . . Kills . | . . . . . . . Allies Corrupted . | . . . . . . . Allies Melted . | . . . . . . . Intel | -11 -10 -10 -7 -5 -5 -5 ------- Run | Yrd Mat Sub Scr Fac Upp Upp Active Infowar (turns) 1335 | 54 694 181 . 266 139 1 Sensors 7 | . . . . 7 . . Terrain 383 | . . . . 266 117 . Seismic 929 | 54 694 181 . . . . Cloaking 23 | . . . . . 22 1 Robot Analysis Total 4 | . . . 4 . . . Derelict Logs Recovered 8 | . . 3 5 . . . Drone Launches 11 | . . . 4 . 7 . Drone Recoveries 11 | . . . 4 . 7 . Exploration | -11 -10 -10 -7 -5 -5 -5 ------------- Run | Yrd Mat Sub Scr Fac Upp Upp Turns Passed 16358 | 132 694 9278 5561 387 234 72 Spaces Moved 5187 | 63 380 1863 2190 292 318 81 Core 2 | 2 . . . . . . Treads 1551 | 61 380 1110 . . . . Legs 2953 | . . 695 2190 68 . . Wheels 142 | . . 58 . 61 . 23 Hover . | . . . . . . . Flight 539 | . . . . 163 318 58 Fastest Speed 31 | 50 160 160 130 31 31 31 Average Speed 274 | 156 160 442 220 97 31 56 Slowest Speed 560 | 160 160 560 340 130 111 117 Overloaded Moves . | . . . . . . . Propulsion Burnouts . | . . . . . . . Robots Hopped . | . . . . . . . Potential Cave-ins . | . . . . . . . Cave-ins Triggered . | . . . . . . . Exploration Rate (%) 46 | 4 60 93 94 9 55 12 Regions Visited 6 Branch Regions 4 Pre-discovered Areas 2 | . 1 . 1 . . . Known Exits Taken . | . . . . . . . Unknown Exits Taken 6 | 1 1 1 1 1 1 . Scrap Searched 12 | . . 7 2 . 3 . Spaces Dug 4 | . . . . 2 2 . Terrain Destroyed 75 | . . 71 . 2 2 . Melee 4 | . . . . 2 2 . Projectile 2 | . . 2 . . . . AOE 69 | . . 69 . . . . Terrain Rammed . | . . . . . . . Walls Destroyed . | . . . . . . . Machines Disabled . | . . . . . . . Actions | -11 -10 -10 -7 -5 -5 -5 --------- Run | Yrd Mat Sub Scr Fac Upp Upp Total 7106 | 81 423 2764 2922 368 446 102 Wait 1603 | . 11 768 681 28 113 2 Move 5181 | 62 379 1862 2189 291 317 81 Hop . | . . . . . . . Pick Up 84 | 5 9 35 28 2 1 4 Fast Attach 21 | 7 2 2 2 5 3 . Attach 28 | . . 7 2 12 3 4 Detach 10 | . . 2 . 5 3 . Swap 12 | 1 1 9 . 1 . . Drop 34 | . . 6 20 3 2 3 Fire 100 | 6 21 73 . . . . Melee 27 | . . . . 17 4 6 Ram . | . . . . . . . Kick . | . . . . . . . Crush . | . . . . . . . Escape Stasis . | . . . . . . . Rewire . | . . . . . . . Trap 2 | . . . . . . 2 Miscellaneous 4 | . . . . 4 . . Route ------- -11/Scrapyard -10/Materials (discovered 4 exits: [*Mat x2] / [*Min] / *Sub) -10/Subcaves (discovered 3 exits: [*Mat x2] / *Scr) -7/Scraptown (discovered 2 exits: *Fac x2) -5/Factory (discovered 2 exits: *Upp / Ext) -5/Upper Caves -5/Upper Caves History --------- Turn | Location | Event 10 | -11/Scrapyard | Discovered new exit (range 16) 133 | -11/Scrapyard | Entered Materials 134 | -10/Materials | Met a group of wandering Federalists 274 | -10/Materials | Discovered new exit (range 16) 318 | -10/Materials | Build established: Mutant 507 | -10/Materials | Discovered new exit (range 16) 731 | -10/Materials | Discovered new exit (range 15) 818 | -10/Materials | Discovered new exit (range 7) 827 | -10/Materials | Entered Subcaves 828 | -10/Subcaves | Continued accompanying wandering Federalists (3) 828 | -10/Subcaves | Approached by a straggling Scientist 851 | -10/Subcaves | Learned Materials terminal intel 854 | -10/Subcaves | Discovered new exit (range 4) 864 | -10/Subcaves | Disturbed a concealed Subdweller 957 | -10/Subcaves | Learned location of 2 exits from Materials 1322 | -10/Subcaves | Build established: Hauler-Mutant 2687 | -10/Subcaves | Visited Clippyterm 2704 | -10/Subcaves | Learned Factory emergency access door positions 2704 | -10/Subcaves | Learned Factory garrison access intel 2903 | -10/Subcaves | A swath of the cavern ceiling suddenly collapsed 3247 | -10/Subcaves | A swath of the cavern ceiling suddenly collapsed 5107 | -10/Subcaves | Core integrity fell below 50% 5628 | -10/Subcaves | Discovered new exit (range 10) 7585 | -10/Subcaves | Visited 4L-MR0's lab 7648 | -10/Subcaves | Found Cargo Legs 7650 | -10/Subcaves | Attached Cargo Legs, gained temporary slots: Utility x2 8810 | -10/Subcaves | Ambushed by angry Subdweller bent on revenge 10105 | -10/Subcaves | Entered Scraptown 10384 | -7/Scraptown | Scanned Subdweller tech in exchange for log data 10391 | -7/Scraptown | Learned Research emergency access door positions 10394 | -7/Scraptown | Learned location of Testing (-3) 10401 | -7/Scraptown | Learned Factory emergency access door positions 10405 | -7/Scraptown | Learned Research garrison access intel 10442 | -7/Scraptown | Heard Great Nut preacher, LISTEN AND RECITE! 10581 | -7/Scraptown | Visited Fellowship of the Rings 10755 | -7/Scraptown | Visited Cave Peace 10802 | -7/Scraptown | Visited Assassins FH 10853 | -7/Scraptown | Visited Comm Corps 12183 | -7/Scraptown | Visited UFD Registry 12183 | -7/Scraptown | Registered with UFD as "Zerotank" 12305 | -7/Scraptown | Visited Supply Room 12373 | -7/Scraptown | Visited Observation Area 12483 | -7/Scraptown | Visited Scrapoid Research Area 12531 | -7/Scraptown | Visited Cartography Club 12571 | -7/Scraptown | Visited Sword Containment 12622 | -7/Scraptown | Visited Analyses Database 12694 | -7/Scraptown | Visited Botcube Research 12888 | -7/Scraptown | Visited Supply Room 12973 | -7/Scraptown | Visited Science Guys 13333 | -7/Scraptown | Found Prototype Slashing Weapon 13333 | -7/Scraptown | Identified Companion Sword 13621 | -7/Scraptown | Build established: Hacker-Mutant 13660 | -7/Scraptown | Found Botcube 14194 | -7/Scraptown | Discovered new exit (range 11) 14473 | -7/Scraptown | Found Surveybot 17 Chip 14629 | -7/Scraptown | Discovered new exit (range 17) 15666 | -7/Scraptown | Entered Factory 15666 | -5/Factory | Evolved 10 slots: Propulsion x3, Utility x7 15667 | -5/Factory | Identified exit to Extension 15669 | -5/Factory | Loaded intel: 4 garrison access locations 15794 | -5/Factory | Central database locked down 15880 | -5/Factory | Assembled infested ambush trap array 15996 | -5/Factory | Discovered new exit (range 15) 16053 | -5/Factory | Entered Upper Caves 16171 | -5/Upper Caves | Attracted the attention of an 0b10 checkpoint 16283 | -5/Upper Caves | Discovered new exit (range 15) 16287 | -5/Upper Caves | Entered another Upper Caves area 16341 | -5/Upper Caves | Lost 3 parts (1n2u) 16359 | -5/Upper Caves | Self-destructed Last Messages --------------- 16326_ Penetrated by Slug. 16327_ Slug penetrates RI-VBH(S). 16330_ RI-VBH(S) destroyed. 16338_ Slug penetrates Wall. 16343_ Penetrated by Slug. 16343_ Slug penetrates Wall. 16346_ Penetrated by Slug. 16346_ Microactuators destroyed. 16346_ Penetrated by Slug. 16350_ Arm. Wheel destroyed. 16350_ Penetrated by Slug. 16353_ Critical hit (Destroy). 16353_ Lgt. Nuclear Core destroyed. 16354_ Penetrated by Slug. 16354_ Lyr. Light Armor Plating destroyed. 16354_ Nuclear Pulse Thruster+ destroyed. 16355_ H-66 Slayer Lgt. Fission Core severed. 16357_ Slug penetrates Wall. 16357_ Penetrated by Slug. 16359_ Cesium-ion Thruster destroyed. Map ----- +----------------------------------------------------+ | ?????????????????????????????????????????????????? | | ?????????????????????????????????????????????????? | | ?????????????????????????????????????????????????? | | ?????????????????????????????????????????????????? | | ?????????????????????????????????????????????????? | | ?????????????????????????????????????????????????? | | ?????????????????????????????????????????????????? | | ?????????????????????????????????????????????????? | | ?????????????????????????????????????????????????? | | ????????????????????? ???????????????????????????? | | ???????????????????? ??????????????????????????? | | ????????????????????# ??????????????????????????? | | ????????????????????# ?????????????????????????? | | ???????????????????## ?????????????????????????? | | ???????????? ?????# ?????????????????????????? | | ???????????? ????# ????#??###???????????????? | | ???????????? ???# ??? #?## #???????????????? | | ?????????????? ###? #??? ??# ???????????????? | | ???????????????# ?# #?? ???# ???????????????? | | ???????????????# ## ### ???? ????????#??????? | | ???????????????# ????? #????#### ????? | | ???????????????# #?????# #??## ????? | | ???????????????# p;####### #?## #????? | | ?????????????????# ^ ;; #?# #????? | | ?????????????????# %h ### #????? | | ?????????????????## @;######## ##???? | | ?????????????????## ! ##?????# #???? | | ????????????????## h%# #???? ???? | | ????????????????# %^ #;#### ??? | | ????????????????## #?? # | | ?????????????????# %%! #??? ## #? | | ?????????????????## ;#^### ##???# #? | | ??????????????????# #### #?######### #?? | | ??????????????????# ???# #?# #?? | | ??????????????????# ???# #?# #? | | ?????????????????? ???# ### ###### # | | ????????????????? ??## #????## #### | | ????????????????#####??# #?????# #????? | | ???????????????????????# #####????? #????? | | ???????????????????????# ##???????? ##????? | | ??????????????????###### #???????? ##?????? | | ?????????????????## ## ##??????? ##??????? | | ????????????????## #???????#####???????? | | ????????????????# #???????????????????? | | ????????????????# #???????????????????? | | ????????????????# ##???????????????????? | | ????????????????# #????????????????????? | | ????????????????# ### #????????????????????? | | ????????????????# ####??##????????????????????? | | ????????????????######???????????????????????????? | +----------------------------------------------------+ Best States ------------- Heat Dissipation 40 Energy Generation 14 Energy Capacity 250 Matter Stores 300 Matter Capacity 300 Sight Range 16 Robot Scan Range 15 Terrain Scan Range 20 Terrain Scan Density 1410 Cloak Strength 3 Armor Coverage 300 Melee Speed Boost 20 Evasion (%) 63 Melee Accuracy 5 Recoil Reduction 2 Offensive Hacking 21 Defensive Hacking 12 Item Schematics ----------------- None Robot Schematics ------------------ None Fabricated ------------ Nothing Repaired ---------- Nothing Studied --------- Xenon Bombardment Thruster | -5/Factory | Hacked Nuclear Pulse Thruster | -5/Factory | Hacked Alien Tech Used ----------------- None Achievements -------------- Fixer-Upper Low-level Research Strength In Numbers Challenges ------------ None Game ------ Seed DerelictBiometalCanceller Manual? 0 Play Time 00:41:25 Cumulative 303.2 hours Start 2026.02.27 @ 01:13:54 End 2026.02.27 @ 19:47:13 Sessions 3 Manual Loads 0 Difficulty Rogue Special Mode None Game No. 243 Rogue 243 Adventurer 0 Explorer 0 Win Type - Total 18 Types 9/0/7/2/0/0/0/0/0/0 Lore% 84 Gallery% 73 Achievement% 58 Wizard Run 0 Options --------- Layout 1 ASCII 0 Keyboard 0 Movement Numpad Keybinds 0 Fullscreen 1 Font 32/SmallcapsGlow Map View 77x35 Zoom Use 0% Tactical HUD 1 Map Filters NONE Filters NONE Steam 1 RUN: 9b71bca8-e2f6-41ca-9cc2-f6ed2992208d